[Event "Titled Tuesday Blitz August 22 Early 2023"]
[White "Goldin, Roman"]
[Black "Turayev, Shahruh"]
[WhiteFideId "2803860"]
[BlackFideId "14003856"]
[WhiteElo "2434"]
[BlackElo "2630"]
[Result "0-1"]
[Round "4"]
[TimeControl "180+1"]
[Date "2023.08.22"]
[WhiteClock "0:00:00"]
[BlackClock "0:00:12"]
[Board "99"]

1. e4 {[%clk 0:02:59]}  d5 {[%clk 0:02:57]} 2. Nc3 {[%clk 0:02:58]}  dxe4 {[%clk 0:02:57]} 3. Nxe4 {[%clk 0:02:58]}  Qd5 {[%clk 0:02:58]} 4. Nc3 {[%clk 0:02:51]}  Qa5 {[%clk 0:02:57]} 5. Nf3 {[%clk 0:02:50]}  Nf6 {[%clk 0:02:57]} 6. g3 {[%clk 0:02:51]}  Nc6 {[%clk 0:02:57]} 7. Bg2 {[%clk 0:02:51]}  Bg4 {[%clk 0:02:58]} 8. h3 {[%clk 0:02:50]}  Bh5 {[%clk 0:02:58]} 9. O-O {[%clk 0:02:51]}  O-O-O {[%clk 0:02:52]} 10. d3 {[%clk 0:02:50]}  e6 {[%clk 0:02:50]} 11. Be3 {[%clk 0:02:43]}  Bc5 {[%clk 0:02:43]} 12. Qe1 {[%clk 0:02:31]}  Bxf3 {[%clk 0:02:18]} 13. Bxf3 {[%clk 0:02:30]}  Nd4 {[%clk 0:02:18]} 14. Bd1 {[%clk 0:02:21]}  Nf5 {[%clk 0:02:13]} 15. Bxc5 {[%clk 0:02:13]}  Qxc5 {[%clk 0:02:12]} 16. Kg2 {[%clk 0:02:07]}  h5 {[%clk 0:01:51]} 17. h4 {[%clk 0:02:01]}  Rhg8 {[%clk 0:01:19]} 18. Ne4 {[%clk 0:01:46]}  Nxe4 {[%clk 0:01:06]} 19. Qxe4 {[%clk 0:01:40]}  g5 {[%clk 0:01:06]} 20. Bxh5 {[%clk 0:01:26]}  Nd6 {[%clk 0:00:52]} 21. Qe3 {[%clk 0:01:16]}  Qxe3 {[%clk 0:00:44]} 22. fxe3 {[%clk 0:01:16]}  gxh4 {[%clk 0:00:44]} 23. g4 {[%clk 0:01:01]}  f5 {[%clk 0:00:33]} 24. Kh3 {[%clk 0:00:56]}  Rg5 {[%clk 0:00:33]} 25. Kxh4 {[%clk 0:00:52]}  Rdg8 {[%clk 0:00:33]} 26. Rg1 {[%clk 0:00:26]}  fxg4 {[%clk 0:00:30]} 27. e4 {[%clk 0:00:17]}  g3 {[%clk 0:00:29]} 28. Raf1 {[%clk 0:00:15]}  Kd7 {[%clk 0:00:28]} 29. Rf3 {[%clk 0:00:15]}  g2 {[%clk 0:00:23]} 30. Rf4 {[%clk 0:00:15]}  Rb5 {[%clk 0:00:15]} 31. b3 {[%clk 0:00:12]}  Rh8 {[%clk 0:00:16]} 32. Rxg2 {[%clk 0:00:07]}  Rhxh5+ {[%clk 0:00:15]} 33. Kg3 {[%clk 0:00:07]}  Rhg5+ {[%clk 0:00:15]} 34. Kf3 {[%clk 0:00:06]}  Rxg2 {[%clk 0:00:16]} 35. Kxg2 {[%clk 0:00:07]}  Ra5 {[%clk 0:00:16]} 36. a4 {[%clk 0:00:06]}  Rc5 {[%clk 0:00:17]} 37. c4 {[%clk 0:00:05]}  a5 {[%clk 0:00:17]} 38. Rh4 {[%clk 0:00:04]}  Rg5+ {[%clk 0:00:17]} 39. Kf3 {[%clk 0:00:04]}  e5 {[%clk 0:00:17]} 40. Rh7+ {[%clk 0:00:04]}  Kc6 {[%clk 0:00:18]} 41. d4 {[%clk 0:00:01]}  exd4 {[%clk 0:00:17]} 42. Kf4 {[%clk 0:00:01]}  Rg1 {[%clk 0:00:14]} 43. e5 {[%clk 0:00:02]}  Rf1+ {[%clk 0:00:12]} 44. Kg4 {[%clk 0:00:02]}  Ne4 {[%clk 0:00:13]} 45. Rh6+ {[%clk 0:00:01]}  Kc5 {[%clk 0:00:11]} 46. e6 {[%clk 0:00:00]}  Kd6 {[%clk 0:00:12]} 0-1


[Site "https://www.chess.com"]

[Event "Titled Tuesday Blitz August 22 Early 2023"]
[White "Zenin, Dmitry"]
[Black "Aaditya Dhingra"]
[WhiteFideId "4127897"]
[BlackFideId "25678191"]
[WhiteElo "2430"]
[BlackElo "2629"]
[Result "0-1"]
[Round "4"]
[TimeControl "180+1"]
[Date "2023.08.22"]
[WhiteClock "0:00:00"]
[BlackClock "0:00:19"]
[Board "100"]

1. d4 {[%clk 0:03:00]}  g6 {[%clk 0:02:56]} 2. c4 {[%clk 0:03:01]}  Bg7 {[%clk 0:02:55]} 3. e4 {[%clk 0:03:02]}  c5 {[%clk 0:02:53]} 4. Nf3 {[%clk 0:03:01]}  d6 {[%clk 0:02:50]} 5. d5 {[%clk 0:02:47]}  Nf6 {[%clk 0:02:50]} 6. Nc3 {[%clk 0:02:46]}  O-O {[%clk 0:02:50]} 7. Bd3 {[%clk 0:02:43]}  e6 {[%clk 0:02:50]} 8. h3 {[%clk 0:02:42]}  exd5 {[%clk 0:02:49]} 9. cxd5 {[%clk 0:02:42]}  Re8 {[%clk 0:02:49]} 10. O-O {[%clk 0:02:41]}  Na6 {[%clk 0:02:47]} 11. Re1 {[%clk 0:02:39]}  Nc7 {[%clk 0:02:46]} 12. a4 {[%clk 0:02:38]}  Rb8 {[%clk 0:02:44]} 13. Bf4 {[%clk 0:02:37]}  a6 {[%clk 0:02:41]} 14. a5 {[%clk 0:02:36]}  b5 {[%clk 0:02:41]} 15. axb6 {[%clk 0:02:35]}  Rxb6 {[%clk 0:02:41]} 16. Qd2 {[%clk 0:02:36]}  Nb5 {[%clk 0:02:38]} 17. Na4 {[%clk 0:02:35]}  Rb7 {[%clk 0:02:35]} 18. Rab1 {[%clk 0:02:11]}  Bd7 {[%clk 0:02:31]} 19. b3 {[%clk 0:02:11]}  Qc7 {[%clk 0:02:06]} 20. Rbc1 {[%clk 0:01:59]}  Qd8 {[%clk 0:02:06]} 21. Nb2 {[%clk 0:01:49]}  Nd4 {[%clk 0:01:47]} 22. Nxd4 {[%clk 0:01:48]}  cxd4 {[%clk 0:01:47]} 23. Nc4 {[%clk 0:01:40]}  Nh5 {[%clk 0:01:41]} 24. Bg5 {[%clk 0:01:38]}  Qb8 {[%clk 0:01:37]} 25. g4 {[%clk 0:01:36]}  Nf6 {[%clk 0:01:31]} 26. Bf4 {[%clk 0:01:36]}  Bf8 {[%clk 0:01:31]} 27. Na5 {[%clk 0:01:31]}  Rxb3 {[%clk 0:01:25]} 28. Nxb3 {[%clk 0:01:29]}  Qxb3 {[%clk 0:01:26]} 29. Rc4 {[%clk 0:01:04]}  Bg7 {[%clk 0:01:16]} 30. Rb4 {[%clk 0:01:01]}  Qa3 {[%clk 0:01:12]} 31. Bxd6 {[%clk 0:00:58]}  Qc3 {[%clk 0:00:55]} 32. Qxc3 {[%clk 0:00:19]}  dxc3 {[%clk 0:00:56]} 33. Rc1 {[%clk 0:00:12]}  Bb5 {[%clk 0:00:51]} 34. Bxb5 {[%clk 0:00:10]}  axb5 {[%clk 0:00:51]} 35. f3 {[%clk 0:00:10]}  Rd8 {[%clk 0:00:42]} 36. Bf4 {[%clk 0:00:09]}  Nd7 {[%clk 0:00:36]} 37. Rxb5 {[%clk 0:00:08]}  Nc5 {[%clk 0:00:36]} 38. Rxc5 {[%clk 0:00:06]}  Bd4+ {[%clk 0:00:36]} 39. Kg2 {[%clk 0:00:06]}  Bxc5 {[%clk 0:00:37]} 40. Rxc3 {[%clk 0:00:07]}  Bd4 {[%clk 0:00:36]} 41. Rc4 {[%clk 0:00:06]}  Bg7 {[%clk 0:00:33]} 42. d6 {[%clk 0:00:06]}  f6 {[%clk 0:00:32]} 43. h4 {[%clk 0:00:03]}  Bf8 {[%clk 0:00:32]} 44. Rc6 {[%clk 0:00:03]}  Kf7 {[%clk 0:00:32]} 45. g5 {[%clk 0:00:03]}  fxg5 {[%clk 0:00:29]} 46. hxg5 {[%clk 0:00:03]}  Ke6 {[%clk 0:00:29]} 47. d7+ {[%clk 0:00:04]}  Kxd7 {[%clk 0:00:29]} 48. Rc7+ {[%clk 0:00:04]}  Ke6 {[%clk 0:00:29]} 49. Rxh7 {[%clk 0:00:04]}  Be7 {[%clk 0:00:28]} 50. Rg7 {[%clk 0:00:03]}  Rd3 {[%clk 0:00:22]} 51. Kg3 {[%clk 0:00:03]}  Rd1 {[%clk 0:00:21]} 52. Rxg6+ {[%clk 0:00:03]}  Kf7 {[%clk 0:00:21]} 53. Rc6 {[%clk 0:00:03]}  Rg1+ {[%clk 0:00:21]} 54. Kh3 {[%clk 0:00:04]}  Rh1+ {[%clk 0:00:20]} 55. Kg4 {[%clk 0:00:04]}  Rf1 {[%clk 0:00:21]} 56. Be5 {[%clk 0:00:03]}  Rg1+ {[%clk 0:00:20]} 57. Kf5 {[%clk 0:00:03]}  Rxg5+ {[%clk 0:00:19]} 58. Kf4 {[%clk 0:00:03]}  Rh5 {[%clk 0:00:19]} 59. Rc7 {[%clk 0:00:00]}  Ke6 {[%clk 0:00:19]} 0-1


[Site "https://www.chess.com"]

[Event "Titled Tuesday Blitz August 22 Early 2023"]
[White "Iskusnyh, Sergei"]
[Black "Romero Ruscalleda, Josep"]
[WhiteFideId "4120027"]
[BlackFideId "2231859"]
[WhiteElo "2628"]
[BlackElo "2425"]
[Result "1-0"]
[Round "4"]
[TimeControl "180+1"]
[Date "2023.08.22"]
[WhiteClock "0:01:18"]
[BlackClock "0:00:37"]
[Board "102"]

1. d4 {[%clk 0:03:00]}  g6 {[%clk 0:02:59]} 2. c4 {[%clk 0:02:57]}  Bg7 {[%clk 0:02:58]} 3. Nf3 {[%clk 0:02:57]}  d6 {[%clk 0:02:58]} 4. g3 {[%clk 0:02:57]}  Nc6 {[%clk 0:02:57]} 5. Bg2 {[%clk 0:02:54]}  e5 {[%clk 0:02:56]} 6. dxe5 {[%clk 0:02:28]}  Nxe5 {[%clk 0:02:54]} 7. Nc3 {[%clk 0:02:24]}  Nxf3+ {[%clk 0:02:45]} 8. Bxf3 {[%clk 0:02:23]}  Ne7 {[%clk 0:02:45]} 9. O-O {[%clk 0:02:19]}  O-O {[%clk 0:02:41]} 10. Bg5 {[%clk 0:02:14]}  a6 {[%clk 0:02:27]} 11. Qd2 {[%clk 0:02:05]}  f6 {[%clk 0:02:25]} 12. Bh6 {[%clk 0:01:52]}  Bxh6 {[%clk 0:02:15]} 13. Qxh6 {[%clk 0:01:53]}  Nf5 {[%clk 0:02:15]} 14. Qd2 {[%clk 0:01:51]}  Rb8 {[%clk 0:02:01]} 15. Rfd1 {[%clk 0:01:45]}  Qe8 {[%clk 0:01:32]} 16. Nd5 {[%clk 0:01:40]}  Rf7 {[%clk 0:01:26]} 17. Rac1 {[%clk 0:01:35]}  Be6 {[%clk 0:01:20]} 18. Nf4 {[%clk 0:01:33]}  Bd7 {[%clk 0:01:15]} 19. Bd5 {[%clk 0:01:32]}  Qe5 {[%clk 0:01:03]} 20. c5 {[%clk 0:01:25]}  Kg7 {[%clk 0:00:51]} 21. Bxf7 {[%clk 0:01:21]}  Kxf7 {[%clk 0:00:50]} 22. cxd6 {[%clk 0:01:20]}  Nxd6 {[%clk 0:00:37]} 23. Rxc7 {[%clk 0:01:18]} 1-0


[Site "https://www.chess.com"]

[Event "Titled Tuesday Blitz August 22 Early 2023"]
[White "Maltsevskaya, Aleksandra"]
[Black "Kupervaser, Erez"]
[WhiteFideId "24174041"]
[BlackFideId "2814587"]
[WhiteElo "2624"]
[BlackElo "2404"]
[Result "1-0"]
[Round "4"]
[TimeControl "180+1"]
[Date "2023.08.22"]
[WhiteClock "0:00:15"]
[BlackClock "0:00:00"]
[Board "104"]

1. e4 {[%clk 0:02:55]}  c5 {[%clk 0:02:59]} 2. Nf3 {[%clk 0:02:55]}  d6 {[%clk 0:03:00]} 3. d4 {[%clk 0:02:56]}  cxd4 {[%clk 0:03:01]} 4. Nxd4 {[%clk 0:02:57]}  Nf6 {[%clk 0:03:01]} 5. Nc3 {[%clk 0:02:57]}  g6 {[%clk 0:03:02]} 6. Bc4 {[%clk 0:02:54]}  Bg7 {[%clk 0:02:56]} 7. Bb3 {[%clk 0:02:54]}  Nc6 {[%clk 0:02:55]} 8. f3 {[%clk 0:02:55]}  Bd7 {[%clk 0:02:51]} 9. Be3 {[%clk 0:02:55]}  Na5 {[%clk 0:02:24]} 10. h4 {[%clk 0:02:53]}  h5 {[%clk 0:02:24]} 11. Qd2 {[%clk 0:02:52]}  Rc8 {[%clk 0:02:15]} 12. Nd5 {[%clk 0:02:46]}  Nc4 {[%clk 0:02:10]} 13. Nxf6+ {[%clk 0:02:43]}  Bxf6 {[%clk 0:02:09]} 14. Bxc4 {[%clk 0:02:43]}  Rxc4 {[%clk 0:02:08]} 15. c3 {[%clk 0:02:39]}  b5 {[%clk 0:02:03]} 16. Bg5 {[%clk 0:02:36]}  Bg7 {[%clk 0:01:57]} 17. O-O {[%clk 0:02:20]}  b4 {[%clk 0:01:51]} 18. Ne2 {[%clk 0:02:19]}  Qc7 {[%clk 0:01:30]} 19. cxb4 {[%clk 0:02:08]}  Rc2 {[%clk 0:01:24]} 20. Qd3 {[%clk 0:02:08]}  Bxb2 {[%clk 0:00:58]} 21. Rad1 {[%clk 0:02:04]}  Be6 {[%clk 0:00:45]} 22. Nf4 {[%clk 0:01:54]}  Bxa2 {[%clk 0:00:33]} 23. Qb5+ {[%clk 0:01:25]}  Kf8 {[%clk 0:00:27]} 24. Nd5 {[%clk 0:00:25]}  Bxd5 {[%clk 0:00:27]} 25. exd5 {[%clk 0:00:26]}  Qb6+ {[%clk 0:00:20]} 26. Qxb6 {[%clk 0:00:25]}  axb6 {[%clk 0:00:21]} 27. Be3 {[%clk 0:00:22]}  b5 {[%clk 0:00:20]} 28. Rf2 {[%clk 0:00:18]}  Rxf2 {[%clk 0:00:19]} 29. Kxf2 {[%clk 0:00:19]}  f6 {[%clk 0:00:19]} 30. Rb1 {[%clk 0:00:15]}  Be5 {[%clk 0:00:08]} 31. f4 {[%clk 0:00:14]}  Kf7 {[%clk 0:00:08]} 32. fxe5 {[%clk 0:00:14]}  dxe5 {[%clk 0:00:09]} 33. Rc1 {[%clk 0:00:14]}  Ra8 {[%clk 0:00:10]} 34. Rc5 {[%clk 0:00:14]}  Ra2+ {[%clk 0:00:10]} 35. Kf3 {[%clk 0:00:14]}  f5 {[%clk 0:00:10]} 36. g3 {[%clk 0:00:14]}  e4+ {[%clk 0:00:10]} 37. Kf4 {[%clk 0:00:15]}  Ra3 {[%clk 0:00:06]} 38. Rxb5 {[%clk 0:00:15]}  Kf6 {[%clk 0:00:06]} 39. Rb6+ {[%clk 0:00:16]}  Kf7 {[%clk 0:00:07]} 40. Rb7 {[%clk 0:00:16]}  Kf6 {[%clk 0:00:07]} 41. Bd4+ {[%clk 0:00:15]}  Kf7 {[%clk 0:00:07]} 42. Bc5 {[%clk 0:00:16]}  Rf3+ {[%clk 0:00:07]} 43. Ke5 {[%clk 0:00:16]}  Rxg3 {[%clk 0:00:08]} 44. Bxe7 {[%clk 0:00:14]}  e3 {[%clk 0:00:08]} 45. Bf6+ {[%clk 0:00:15]}  Ke8 {[%clk 0:00:00]} 46. Ke6 {[%clk 0:00:15]} 1-0


[Site "https://www.chess.com"]

[Event "Titled Tuesday Blitz August 22 Early 2023"]
[White "Wang2007"]
[Black "CrazyAdvenTures"]
[WhiteElo "2375"]
[BlackElo "2623"]
[Result "0-1"]
[Round "4"]
[TimeControl "180+1"]
[Date "2023.08.22"]
[WhiteClock "0:00:01"]
[BlackClock "0:00:13"]
[Board "106"]

1. d4 {[%clk 0:03:00]}  Nf6 {[%clk 0:02:57]} 2. c4 {[%clk 0:03:01]}  d6 {[%clk 0:02:57]} 3. Nf3 {[%clk 0:03:01]}  g6 {[%clk 0:02:56]} 4. g3 {[%clk 0:03:01]}  Bg7 {[%clk 0:02:53]} 5. Bg2 {[%clk 0:03:02]}  O-O {[%clk 0:02:54]} 6. O-O {[%clk 0:03:01]}  Bf5 {[%clk 0:02:53]} 7. Nc3 {[%clk 0:03:01]}  Ne4 {[%clk 0:02:53]} 8. Ne1 {[%clk 0:02:49]}  Nxc3 {[%clk 0:02:50]} 9. bxc3 {[%clk 0:02:50]}  Nc6 {[%clk 0:02:46]} 10. e4 {[%clk 0:02:46]}  Bd7 {[%clk 0:02:44]} 11. Nd3 {[%clk 0:02:13]}  Na5 {[%clk 0:02:24]} 12. c5 {[%clk 0:02:11]}  Bb5 {[%clk 0:02:21]} 13. cxd6 {[%clk 0:02:08]}  cxd6 {[%clk 0:02:22]} 14. Re1 {[%clk 0:01:59]}  Rc8 {[%clk 0:02:20]} 15. Rb1 {[%clk 0:01:55]}  Bc4 {[%clk 0:02:08]} 16. Nb4 {[%clk 0:01:47]}  Nc6 {[%clk 0:02:05]} 17. Be3 {[%clk 0:01:40]}  Nxb4 {[%clk 0:01:54]} 18. Rxb4 {[%clk 0:01:36]}  b5 {[%clk 0:01:46]} 19. a4 {[%clk 0:01:29]}  a5 {[%clk 0:01:28]} 20. Rb2 {[%clk 0:01:27]}  Qd7 {[%clk 0:01:28]} 21. axb5 {[%clk 0:01:13]}  Bxb5 {[%clk 0:01:29]} 22. Qa1 {[%clk 0:01:13]}  a4 {[%clk 0:01:23]} 23. Reb1 {[%clk 0:01:07]}  Bd3 {[%clk 0:01:21]} 24. Rd1 {[%clk 0:01:02]}  Bc4 {[%clk 0:01:01]} 25. Rb4 {[%clk 0:00:53]}  Bb3 {[%clk 0:00:59]} 26. Rc1 {[%clk 0:00:53]}  Rc7 {[%clk 0:00:52]} 27. Bf1 {[%clk 0:00:43]}  Qg4 {[%clk 0:00:42]} 28. d5 {[%clk 0:00:34]}  Rfc8 {[%clk 0:00:41]} 29. e5 {[%clk 0:00:29]}  Qf3 {[%clk 0:00:35]} 30. Bg2 {[%clk 0:00:17]}  Qe2 {[%clk 0:00:32]} 31. Bf1 {[%clk 0:00:17]}  Qf3 {[%clk 0:00:32]} 32. Bg2 {[%clk 0:00:17]}  Qf5 {[%clk 0:00:32]} 33. exd6 {[%clk 0:00:10]}  exd6 {[%clk 0:00:33]} 34. Bd4 {[%clk 0:00:10]}  Bxd4 {[%clk 0:00:19]} 35. Rxd4 {[%clk 0:00:11]}  Qe5 {[%clk 0:00:18]} 36. Re1 {[%clk 0:00:10]}  Qf6 {[%clk 0:00:18]} 37. Bh3 {[%clk 0:00:08]}  Rb8 {[%clk 0:00:15]} 38. Rde4 {[%clk 0:00:04]}  Kg7 {[%clk 0:00:14]} 39. R4e3 {[%clk 0:00:02]}  Rb5 {[%clk 0:00:12]} 40. Rc1 {[%clk 0:00:01]}  Rxd5 {[%clk 0:00:11]} 41. Bg2 {[%clk 0:00:02]}  Rdc5 {[%clk 0:00:12]} 42. Re4 {[%clk 0:00:01]}  d5 {[%clk 0:00:12]} 43. Rd4 {[%clk 0:00:01]}  Qxd4 {[%clk 0:00:12]} 44. cxd4 {[%clk 0:00:02]}  Rxc1+ {[%clk 0:00:12]} 45. Qxc1 {[%clk 0:00:02]}  Rxc1+ {[%clk 0:00:11]} 46. Bf1 {[%clk 0:00:03]}  Rxf1+ {[%clk 0:00:12]} 47. Kxf1 {[%clk 0:00:01]}  a3 {[%clk 0:00:13]} 0-1


[Site "https://www.chess.com"]

[Event "Titled Tuesday Blitz August 22 Early 2023"]
[White "Vlassov, Nikolai"]
[Black "crosky"]
[WhiteFideId "4103360"]
[WhiteElo "2616"]
[BlackElo "2355"]
[Result "1-0"]
[Round "4"]
[TimeControl "180+1"]
[Date "2023.08.22"]
[WhiteClock "0:01:29"]
[BlackClock "0:00:54"]
[Board "107"]

1. e4 {[%clk 0:03:00]}  c6 {[%clk 0:03:00]} 2. d4 {[%clk 0:03:00]}  d5 {[%clk 0:03:01]} 3. f3 {[%clk 0:03:00]}  Qb6 {[%clk 0:03:00]} 4. Nc3 {[%clk 0:03:00]}  dxe4 {[%clk 0:03:00]} 5. fxe4 {[%clk 0:03:00]}  e5 {[%clk 0:03:01]} 6. Nf3 {[%clk 0:02:42]}  exd4 {[%clk 0:03:01]} 7. Qxd4 {[%clk 0:02:42]}  Qxd4 {[%clk 0:03:00]} 8. Nxd4 {[%clk 0:02:42]}  Bc5 {[%clk 0:03:01]} 9. Nb3 {[%clk 0:02:41]}  Bd6 {[%clk 0:03:01]} 10. Bg5 {[%clk 0:02:29]}  Nd7 {[%clk 0:02:51]} 11. O-O-O {[%clk 0:02:23]}  h6 {[%clk 0:02:51]} 12. Rxd6 {[%clk 0:02:09]}  hxg5 {[%clk 0:02:52]} 13. Be2 {[%clk 0:02:05]}  Ngf6 {[%clk 0:02:46]} 14. h3 {[%clk 0:02:02]}  Nh5 {[%clk 0:02:40]} 15. Bxh5 {[%clk 0:01:57]}  Rxh5 {[%clk 0:02:41]} 16. Rhd1 {[%clk 0:01:50]}  Rh6 {[%clk 0:02:35]} 17. R6d2 {[%clk 0:01:44]}  Ke7 {[%clk 0:02:25]} 18. Nd4 {[%clk 0:01:43]}  g6 {[%clk 0:02:16]} 19. Nf3 {[%clk 0:01:41]}  f6 {[%clk 0:02:11]} 20. e5 {[%clk 0:01:33]}  Nxe5 {[%clk 0:02:07]} 21. Nxe5 {[%clk 0:01:34]}  fxe5 {[%clk 0:02:08]} 22. Rd8 {[%clk 0:01:34]}  b6 {[%clk 0:00:54]} 23. Rg8 {[%clk 0:01:29]} 1-0


[Site "https://www.chess.com"]

[Event "Titled Tuesday Blitz August 22 Early 2023"]
[White "Kuzhilniy, Oleksandr"]
[Black "Bashirli, Saadat"]
[WhiteFideId "34110500"]
[BlackFideId "13429990"]
[WhiteElo "2614"]
[BlackElo "2353"]
[Result "1-0"]
[Round "4"]
[TimeControl "180+1"]
[Date "2023.08.22"]
[WhiteClock "0:00:17"]
[BlackClock "0:00:08"]
[Board "108"]

1. b3 {[%clk 0:03:00]}  d5 {[%clk 0:02:58]} 2. Bb2 {[%clk 0:03:00]}  Nf6 {[%clk 0:02:59]} 3. Nf3 {[%clk 0:02:56]}  Bg4 {[%clk 0:02:57]} 4. Ne5 {[%clk 0:02:55]}  Bf5 {[%clk 0:02:55]} 5. d3 {[%clk 0:02:55]}  c6 {[%clk 0:02:54]} 6. Nd2 {[%clk 0:02:55]}  Nbd7 {[%clk 0:02:52]} 7. Ndf3 {[%clk 0:02:55]}  h6 {[%clk 0:02:50]} 8. g3 {[%clk 0:02:54]}  e6 {[%clk 0:02:49]} 9. Bg2 {[%clk 0:02:54]}  Bd6 {[%clk 0:02:49]} 10. Nxd7 {[%clk 0:02:42]}  Qxd7 {[%clk 0:02:45]} 11. O-O {[%clk 0:02:42]}  Qe7 {[%clk 0:02:40]} 12. Ne5 {[%clk 0:02:40]}  O-O {[%clk 0:02:39]} 13. a4 {[%clk 0:02:20]}  Nd7 {[%clk 0:02:36]} 14. Nxd7 {[%clk 0:02:20]}  Qxd7 {[%clk 0:02:28]} 15. e4 {[%clk 0:02:19]}  Bh7 {[%clk 0:02:27]} 16. Qg4 {[%clk 0:02:18]}  f5 {[%clk 0:02:01]} 17. exf5 {[%clk 0:02:04]}  Bxf5 {[%clk 0:02:00]} 18. Qh5 {[%clk 0:02:01]}  Rae8 {[%clk 0:01:55]} 19. Rae1 {[%clk 0:01:58]}  e5 {[%clk 0:01:51]} 20. Re3 {[%clk 0:01:51]}  Qf7 {[%clk 0:01:44]} 21. Qxf7+ {[%clk 0:01:51]}  Rxf7 {[%clk 0:01:43]} 22. Rfe1 {[%clk 0:01:51]}  Rfe7 {[%clk 0:01:41]} 23. Bf3 {[%clk 0:01:22]}  Bg6 {[%clk 0:01:31]} 24. h4 {[%clk 0:01:19]}  Kf7 {[%clk 0:01:28]} 25. Bg4 {[%clk 0:01:17]}  b6 {[%clk 0:01:17]} 26. Kg2 {[%clk 0:01:03]}  e4 {[%clk 0:01:15]} 27. dxe4 {[%clk 0:00:59]}  Bxe4+ {[%clk 0:01:14]} 28. Bf3 {[%clk 0:00:33]}  Bxc2 {[%clk 0:01:05]} 29. Rxe7+ {[%clk 0:00:33]}  Rxe7 {[%clk 0:01:02]} 30. Rc1 {[%clk 0:00:34]}  Bxb3 {[%clk 0:01:00]} 31. Rxc6 {[%clk 0:00:34]}  Bc5 {[%clk 0:00:58]} 32. Bh5+ {[%clk 0:00:21]}  Kg8 {[%clk 0:00:34]} 33. Bg6 {[%clk 0:00:21]}  Bxa4 {[%clk 0:00:14]} 34. Rc8+ {[%clk 0:00:20]}  Be8 {[%clk 0:00:13]} 35. Bxe8 {[%clk 0:00:18]}  Kh7 {[%clk 0:00:13]} 36. h5 {[%clk 0:00:18]}  g5 {[%clk 0:00:08]} 37. Bg6# {[%clk 0:00:17]} 1-0


[Site "https://www.chess.com"]

[Event "Titled Tuesday Blitz August 22 Early 2023"]
[White "ZeGood_ZeBad_ZeUgly"]
[Black "Borgaonkar Akshay"]
[BlackFideId "25639110"]
[WhiteElo "2262"]
[BlackElo "2598"]
[Result "0-1"]
[Round "4"]
[TimeControl "180+1"]
[Date "2023.08.22"]
[WhiteClock "0:00:00"]
[BlackClock "0:01:29"]
[Board "114"]

1. d4 {[%clk 0:02:38]}  g6 {[%clk 0:02:56]} 2. e4 {[%clk 0:02:35]}  Bg7 {[%clk 0:02:57]} 3. Nc3 {[%clk 0:02:34]}  c6 {[%clk 0:02:58]} 4. Nf3 {[%clk 0:02:29]}  d5 {[%clk 0:02:58]} 5. Bf4 {[%clk 0:02:13]}  dxe4 {[%clk 0:02:55]} 6. Nxe4 {[%clk 0:02:14]}  Nf6 {[%clk 0:02:55]} 7. Bd3 {[%clk 0:02:05]}  Nbd7 {[%clk 0:02:52]} 8. Ned2 {[%clk 0:01:43]}  O-O {[%clk 0:02:50]} 9. Qe2 {[%clk 0:01:41]}  Re8 {[%clk 0:02:49]} 10. Nc4 {[%clk 0:01:36]}  Nd5 {[%clk 0:02:41]} 11. Bd2 {[%clk 0:01:32]}  Qc7 {[%clk 0:02:21]} 12. O-O {[%clk 0:01:18]}  c5 {[%clk 0:02:13]} 13. Be4 {[%clk 0:00:59]}  N7f6 {[%clk 0:02:10]} 14. dxc5 {[%clk 0:00:52]}  Qxc5 {[%clk 0:02:07]} 15. c3 {[%clk 0:00:40]}  Nxe4 {[%clk 0:02:00]} 16. Qxe4 {[%clk 0:00:41]}  Bf5 {[%clk 0:02:01]} 17. Qe2 {[%clk 0:00:40]}  Rad8 {[%clk 0:01:59]} 18. Nfe5 {[%clk 0:00:26]}  b5 {[%clk 0:01:56]} 19. Na5 {[%clk 0:00:18]}  Nb6 {[%clk 0:01:43]} 20. Nac6 {[%clk 0:00:13]}  Rxd2 {[%clk 0:01:39]} 21. Qxd2 {[%clk 0:00:12]}  Bxe5 {[%clk 0:01:40]} 22. Nxe5 {[%clk 0:00:12]}  Qxe5 {[%clk 0:01:40]} 23. Rfe1 {[%clk 0:00:13]}  Qc7 {[%clk 0:01:40]} 24. Rad1 {[%clk 0:00:09]}  Nc4 {[%clk 0:01:40]} 25. Qc1 {[%clk 0:00:09]}  e5 {[%clk 0:01:33]} 26. b3 {[%clk 0:00:09]}  Nd6 {[%clk 0:01:33]} 27. Qa3 {[%clk 0:00:08]}  Ne4 {[%clk 0:01:32]} 28. c4 {[%clk 0:00:04]}  bxc4 {[%clk 0:01:31]} 29. bxc4 {[%clk 0:00:04]}  Qxc4 {[%clk 0:01:31]} 30. Qxa7 {[%clk 0:00:04]}  Nc3 {[%clk 0:01:29]} 31. Rc1 {[%clk 0:00:01]}  Ne2+ {[%clk 0:01:29]} 32. Rxe2 {[%clk 0:00:00]}  Qxc1+ {[%clk 0:01:29]} 0-1


[Site "https://www.chess.com"]

[Event "Titled Tuesday Blitz August 22 Early 2023"]
[White "Ahmad, Khagan"]
[Black "parintele_chess"]
[WhiteFideId "13431552"]
[WhiteElo "2598"]
[BlackElo "2235"]
[Result "1-0"]
[Round "4"]
[TimeControl "180+1"]
[Date "2023.08.22"]
[WhiteClock "0:01:01"]
[BlackClock "0:00:53"]
[Board "115"]

1. Nf3 {[%clk 0:02:28]}  Nf6 {[%clk 0:02:59]} 2. c4 {[%clk 0:02:27]}  c5 {[%clk 0:02:57]} 3. g3 {[%clk 0:02:25]}  g6 {[%clk 0:02:57]} 4. Nc3 {[%clk 0:02:25]}  Nc6 {[%clk 0:02:56]} 5. Bg2 {[%clk 0:02:25]}  Bg7 {[%clk 0:02:56]} 6. d4 {[%clk 0:02:25]}  cxd4 {[%clk 0:02:56]} 7. Nxd4 {[%clk 0:02:26]}  Nxd4 {[%clk 0:02:57]} 8. Qxd4 {[%clk 0:02:27]}  d6 {[%clk 0:02:57]} 9. O-O {[%clk 0:02:27]}  O-O {[%clk 0:02:57]} 10. Qd3 {[%clk 0:02:28]}  a6 {[%clk 0:02:55]} 11. b3 {[%clk 0:02:27]}  Rb8 {[%clk 0:02:51]} 12. Bb2 {[%clk 0:02:26]}  Bd7 {[%clk 0:02:46]} 13. a4 {[%clk 0:02:13]}  b5 {[%clk 0:02:19]} 14. cxb5 {[%clk 0:02:09]}  axb5 {[%clk 0:02:20]} 15. Nxb5 {[%clk 0:02:09]}  Bxb5 {[%clk 0:02:19]} 16. axb5 {[%clk 0:02:09]}  Qb6 {[%clk 0:02:18]} 17. Bc6 {[%clk 0:02:07]}  Ng4 {[%clk 0:02:08]} 18. Bxg7 {[%clk 0:02:01]}  Kxg7 {[%clk 0:02:09]} 19. Qc3+ {[%clk 0:02:00]}  f6 {[%clk 0:02:05]} 20. Ra6 {[%clk 0:01:56]}  Qd8 {[%clk 0:01:54]} 21. f4 {[%clk 0:01:29]}  Rb6 {[%clk 0:01:46]} 22. Qa5 {[%clk 0:01:21]}  Rxa6 {[%clk 0:01:21]} 23. Qxd8 {[%clk 0:01:20]}  Rxd8 {[%clk 0:01:21]} 24. bxa6 {[%clk 0:01:20]}  Ne3 {[%clk 0:01:17]} 25. a7 {[%clk 0:01:17]}  Nxf1 {[%clk 0:01:15]} 26. Kxf1 {[%clk 0:01:17]}  Kf7 {[%clk 0:01:12]} 27. b4 {[%clk 0:01:15]}  Ke6 {[%clk 0:01:08]} 28. b5 {[%clk 0:01:15]}  d5 {[%clk 0:01:07]} 29. b6 {[%clk 0:01:12]}  Kd6 {[%clk 0:01:08]} 30. Ba4 {[%clk 0:01:04]}  Rc8 {[%clk 0:00:57]} 31. b7 {[%clk 0:01:01]}  Rc1+ {[%clk 0:00:53]} 32. Kf2 {[%clk 0:01:01]} 1-0


[Site "https://www.chess.com"]